bitfinex-derivatives/quotes_SOLF0:USTF0_20250221
["timestamp","ask_amount","ask_price","bid_price","bid_amount"]
[1740146461726,15.00449002,179.81,179.77,7.64255896]
[1740146462431,14.96285044,179.78,179.77,7.64255896]
[1740146462830,14.96285044,179.78,179.77,0.04005531]
[1740146466930,14.96285044,179.78,179.69,3.5661]
[1740146467130,14.96285044,179.75,179.69,3.5661]
[1740146467329,14.96285044,179.75,179.73,5.5619]
[1740146467532,14.96285044,179.75,179.69,3.5661]
[1740146467730,193.0,179.81,179.62,14.96285044]
[1740146467731,14.96285044,179.72,179.62,14.96285044]
[1740146467926,14.96285044,179.72,179.63,3.5399]
[1740146468131,0.04124847,179.69,179.65,0.03980978]
[1740146468332,0.04124847,179.69,179.68,5.5636]
[1740146469935,14.96285044,179.75,179.74,5.5617]
[1740146470132,14.96285044,179.78,179.65,14.96285044]
[1740146470338,207.96285044,179.81,179.71,14.96285044]
[1740146470635,14.96285044,179.81,179.72,3.4282]
[1740146470830,5.56,179.8,179.72,3.4282]
[1740146471029,14.96285044,179.81,179.72,3.4282]
[1740146471230,0.03536384,179.78,179.74,0.04155989]
[1740146471427,14.96285044,179.84,179.74,0.04155989]
[1740146471630,14.96285044,179.84,179.78,5.5603]
[1740146471827,14.96285044,179.84,179.72,3.4282]
[1740146472027,14.96285044,179.84,179.74,14.96285044]
[1740146472231,14.96285044,179.87,179.74,14.96285044]
[1740146472536,14.96285044,179.84,179.72,3.4282]
[1740146472735,200.52,179.89,179.72,3.4282]
[1740146472736,24.059871,179.81,179.79,0.04244671]
[1740146473032,5.5609,179.77,179.63,24.059871]
[1740146473236,24.059871,179.76,179.64,1.7676]
[1740146473436,24.059871,179.76,179.71,5.5625]
[1740146473631,5.5606,179.78,179.64,1.7676]
[1740146473938,24.059871,179.79,179.73,5.5618]
[1740146474139,24.059871,179.85,179.7,24.059871]
[1740146474336,24.059871,179.85,179.71,1.7336]
[1740146474537,5.5581,179.86,179.8,5.5597]
[1740146474738,193.0,179.87,179.8,5.5597]
[1740146474933,193.0,179.87,179.73,24.059871]
[1740146475133,5.5587,179.84,179.78,5.5603]
[1740146475329,0.03932038,179.82,179.78,0.03650111]
[1740146475534,0.03932038,179.82,179.8,5.5599]
[1740146476040,0.03932038,179.82,179.78,0.03650111]
[1740146476733,24.059871,179.88,179.78,0.03650111]
[1740146476938,29.617371,179.88,179.78,0.03650111]
[1740146477138,24.059871,179.91,179.78,0.03650111]
[1740146477339,5.5572,179.89,179.76,24.059871]
[1740146477635,200.6634,179.93,179.81,0.03624792]
[1740146477636,193.0,179.93,179.81,0.03624792]
[1740146477943,198.5559,179.93,179.8,1.7885]
[1740146478336,193.0,179.93,179.8,1.7885]
[1740146478640,193.0,179.93,179.89,5.5569]
[1740146478831,24.059871,179.94,179.89,5.5569]
[1740146479036,0.0403005,179.93,179.89,5.59543282]
[1740146479540,0.0403005,179.93,179.91,5.5565]
[1740146479741,0.0403005,179.93,179.89,0.03853282]
[1740146480133,0.0403005,179.93,179.89,5.59543282]
[1740146480333,5.5965005,179.93,179.89,0.03853282]
[1740146480533,0.0403005,179.93,179.89,5.59553282]
[1740146480738,0.0403005,179.93,179.89,0.03853282]
[1740146482742,0.0403005,179.93,179.91,5.5563]
[1740146482940,0.0403005,179.93,179.89,0.03853282]
[1740146483340,5.5563,179.92,179.89,0.03853282]
[1740146483837,0.0403005,179.93,179.89,0.03853282]
[1740146484040,24.059871,179.91,179.84,1.8052]
[1740146484438,24.059871,179.91,179.83,1.7048]
[1740146484637,24.059871,179.88,179.77,1.8232]
[1740146485139,5.5582,179.86,179.8,7.3481]
[1740146485340,5.60050312,179.86,179.82,0.04145825]
[1740146485737,0.04230312,179.86,179.82,0.04145825]
[1740146486338,0.04230312,179.86,179.83,5.5587]
[1740146486538,0.04230312,179.86,179.82,0.04145825]
[1740146486939,5.5586,179.85,179.82,0.04145825]
[1740146487642,5.5588,179.84,179.82,0.04145825]
[1740146488441,55.61,179.84,179.76,1.7524]
[1740146488645,24.059871,179.82,179.71,1.6652]
[1740146489747,0.03865223,179.78,179.75,0.03896817]
[1740146490146,0.03865223,179.78,179.75,5.60016817]
[1740146490347,0.03865223,179.78,179.75,0.03896817]
[1740146490746,0.03865223,179.78,179.75,5.60036817]
[1740146491548,0.03865223,179.78,179.75,0.03896817]
[1740146492450,24.059871,179.76,179.75,0.03896817]
[1740146494544,0.03865223,179.78,179.75,0.03896817]
[1740146494847,5.5609,179.77,179.75,0.03896817]
[1740146495048,0.03865223,179.78,179.75,0.03896817]
[1740146496654,29.620971,179.76,179.75,0.03896817]
[1740146496849,24.059871,179.76,179.7,5.5628]
[1740146497251,24.059871,179.76,179.71,5.5627]
[1740146497445,24.059871,179.79,179.69,3.3855]
[1740146497849,5.5611,179.77,179.72,5.5621]
[1740146498051,0.03839904,179.76,179.72,0.03719745]
[1740146498447,0.03839904,179.76,179.73,5.5618]
[1740146498849,0.03839904,179.76,179.72,0.03719745]
[1740146499450,0.03839904,179.76,179.73,5.562]
[1740146499650,0.03839904,179.76,179.72,0.03719745]
[1740146500051,0.03839904,179.76,179.72,5.59949745]
[1740146500648,0.03839904,179.76,179.72,0.03719745]
[1740146500843,24.09827004,179.76,179.72,0.03719745]
[1740146502350,29.65947004,179.76,179.72,5.59949745]
[1740146504654,15.04937704,179.75,179.72,5.59949745]
[1740146505456,15.04937704,179.75,179.72,0.03719745]
[1740146505652,20.61087704,179.75,179.72,0.03719745]
[1740146505851,15.04937704,179.75,179.72,0.03719745]
[1740146506052,20.61087704,179.75,179.72,0.03719745]
[1740146506258,20.61087704,179.75,179.66,0.71524536]
[1740146506259,15.04937704,179.75,179.59,22.65188069]
[1740146506553,15.04937704,179.72,179.7,5.5629]
[1740146507053,15.04937704,179.72,179.65,1.7648]
[1740146507455,0.04071906,179.7,179.67,0.04201884]
[1740146507755,0.04071906,179.7,179.69,5.5633]
[1740146511663,0.04071906,179.7,179.68,5.5635]
[1740146512664,0.04071906,179.7,179.67,0.04201884]
[1740146512859,5.5633,179.69,179.67,0.04201884]
[1740146513464,0.04071906,179.7,179.67,0.04201884]
[1740146513862,0.04071906,179.7,179.68,5.5636]
[1740146514064,0.04071906,179.7,179.67,0.04201884]
[1740146514657,0.04071906,179.7,179.68,5.5634]
[1740146514862,0.04071906,179.7,179.67,0.04201884]
[1740146515264,0.04071906,179.7,179.68,5.5636]
[1740146515463,0.04071906,179.7,179.67,0.04201884]
[1740146515858,0.04071906,179.7,179.68,5.5634]
[1740146516562,0.04071906,179.7,179.67,0.04201884]
[1740146516763,0.04071906,179.7,179.69,5.5633]
[1740146517162,0.04071906,179.7,179.67,0.04201884]
[1740146517765,0.04071906,179.7,179.69,5.5633]
[1740146518465,0.04071906,179.7,179.67,0.04201884]
[1740146518665,0.04071906,179.7,179.68,5.5635]
[1740146519565,0.04071906,179.7,179.67,5.60581884]
[1740146520065,0.04071906,179.7,179.67,0.04201884]
[1740146520265,0.04071906,179.7,179.69,5.5633]
[1740146521364,0.04071906,179.7,179.67,5.60581884]
[1740146521765,5.60391906,179.7,179.67,5.60581884]
[1740146521960,0.04071906,179.7,179.67,0.04201884]
[1740146522657,0.1238,179.83,179.68,70.69937704]
[1740146522863,0.1238,179.83,179.68,15.04937704]
[1740146522864,15.04937704,179.81,179.68,15.04937704]
[1740146523062,5.5604,179.79,179.75,5.5613]
[1740146523864,5.59767042,179.79,179.75,5.60178923]
[1740146524566,0.03727042,179.79,179.75,5.60178923]
[1740146524769,0.03727042,179.79,179.75,0.04048923]
[1740146524966,0.03727042,179.79,179.76,5.5611]
[1740146525667,0.03727042,179.79,179.75,5.60168923]
[1740146525868,0.03727042,179.79,179.75,0.04048923]
[1740146526370,15.04937704,179.78,179.75,5.60188923]
[1740146526565,15.04937704,179.78,179.75,0.04048923]
[1740146527067,15.04937704,179.78,179.75,5.60188923]
[1740146527765,15.04937704,179.78,179.75,0.04048923]
[1740146527970,15.04937704,179.78,179.76,5.5611]
[1740146529171,15.04937704,179.78,179.75,0.04048923]
[1740146529172,15.04937704,179.78,179.75,5.60188923]
[1740146529567,15.04937704,179.78,179.75,0.04048923]
[1740146530672,5.5608,179.77,179.75,0.04048923]
[1740146531172,15.04937704,179.78,179.75,0.04048923]
[1740146532172,20.61007704,179.78,179.75,0.04048923]
[1740146532974,5.561,179.77,179.75,0.04048923]
[1740146533471,15.04937704,179.78,179.75,0.04048923]
[1740146533669,5.561,179.77,179.75,0.04048923]
[1740146534777,5.5611,179.76,179.75,0.04048923]
[1740146534974,70.67937704,179.78,179.65,1.7648]
[1740146535172,15.04937704,179.7,179.66,1.7831]
[1740146535477,15.04937704,179.7,179.67,5.5639]
[1740146535773,15.04937704,179.7,179.65,1.7648]
[1740146535977,5.5636,179.68,179.65,1.7648]
[1740146536182,5.5636,179.68,179.66,0.03695144]
[1740146536379,0.03895856,179.69,179.66,0.03695144]
[1740146536571,9.63890456,179.67,179.66,0.03695144]
[1740146537586,15.20280456,179.67,179.66,0.03695144]
[1740146537880,9.63890456,179.63,179.62,30.41001461]
[1740146538681,15.06772073,179.64,179.62,30.41001461]
[1740146538881,15.10700554,179.64,179.62,30.41001461]
[1740146539373,15.10700554,179.64,179.61,5.60183394]
[1740146540277,15.10700554,179.64,179.61,0.03623394]
[1740146541382,15.10700554,179.64,179.61,5.60173394]
[1740146542183,85.84472627,179.64,179.5,60.82002925]
[1740146542479,15.06772073,179.59,179.51,26.26731096]
[1740146542671,15.06772073,179.59,179.57,5.5669]
[1740146542871,15.06772073,179.59,179.51,26.26731096]
[1740146543479,0.04139501,179.57,179.54,0.04174383]
[1740146543886,0.04139501,179.57,179.56,5.5673]
[1740146545779,0.04139501,179.57,179.55,5.5675]
[1740146546776,0.04139501,179.57,179.54,0.04174383]
[1740146546983,0.04139501,179.57,179.56,5.5673]
[1740146547779,0.04139501,179.57,179.55,5.5676]
[1740146548181,0.04139501,179.57,179.55,5.5674]
[1740146549782,15.06772073,179.56,179.43,15.06772073]
[1740146549988,15.06772073,179.56,179.27,54.04962077]
[1740146549989,15.06772073,179.53,179.44,5.1538]
[1740146550585,20.63622073,179.53,179.44,5.1538]
[1740146550787,15.06772073,179.5,179.44,3.47]
[1740146550989,20.67742438,179.5,179.47,0.03904148]
[1740146551289,20.63692073,179.5,179.4,5.2753]
[1740146551489,15.10702492,179.5,179.47,0.03859891]
[1740146551787,15.10702492,179.5,179.47,0.04140172]
[1740146551984,5.5696,179.49,179.47,0.04140172]
[1740146552487,15.10702492,179.5,179.47,0.04140172]
[1740146553588,20.67632492,179.5,179.47,0.04140172]
[1740146554088,5.5696,179.49,179.47,0.04140172]
[1740146554590,20.67632492,179.5,179.47,0.04140172]
[1740146554792,15.10702492,179.5,179.47,0.04140172]
[1740146556088,5.5698,179.48,179.47,0.04140172]
[1740146557091,20.67632492,179.5,179.47,0.04140172]
[1740146557490,15.10702492,179.5,179.47,0.04140172]
[1740146558985,15.10702492,179.5,179.4,3.5902]
[1740146559189,15.06772073,179.46,179.4,3.5902]
[1740146560087,15.06772073,179.46,179.42,5.5716]
[1740146560283,0.03749936,179.45,179.42,5.5716]
[1740146560890,0.03749936,179.45,179.41,5.60612038]
[1740146561689,5.60839936,179.45,179.41,5.60612038]
[1740146562689,5.5713,179.44,179.41,0.03422038]
[1740146562886,15.06772073,179.43,179.41,0.03422038]
[1740146563791,0.03749936,179.45,179.41,5.60622038]
[1740146564197,0.03749936,179.45,179.41,0.03422038]
[1740146564391,0.03749936,179.45,179.42,5.5715]
[1740146564587,0.03749936,179.45,179.41,0.03422038]
[1740146564895,5.60829936,179.45,179.41,0.03422038]
[1740146565495,5.5712,179.44,179.41,0.03422038]
[1740146565794,0.03749936,179.45,179.41,0.03422038]
[1740146565996,5.5713,179.44,179.41,0.03422038]
[1740146566697,0.03749936,179.45,179.41,0.03422038]
[1740146567294,0.03749936,179.45,179.42,5.5715]
[1740146567796,15.06772073,179.43,179.29,5.373]
[1740146568001,15.06772073,179.33,179.29,3.5924]
[1740146568397,20.64222073,179.33,179.29,3.5924]
[1740146568596,9.67670485,179.3,179.29,3.5924]
[1740146568798,9.67670485,179.37,179.29,3.5924]
[1740146569000,9.67670485,179.37,179.31,9.67670485]
[1740146569199,0.04105468,179.35,179.32,1.7594]
[1740146569595,0.04105468,179.35,179.34,5.5742]
[1740146569800,7.52,179.42,179.34,65.43670485]
[1740146570001,9.67670485,179.41,179.34,9.67670485]
[1740146570202,9.67670485,179.41,179.32,1.7594]
[1740146570203,9.67670485,179.41,179.36,9.67670485]
[1740146570503,9.67670485,179.43,179.38,9.67670485]
[1740146570703,15.09659561,179.47,179.37,1.7162]
[1740146571103,0.04275141,179.44,179.4,0.03813198]
[1740146571302,15.13934702,179.44,179.4,0.03813198]
[1740146571496,15.09659561,179.41,179.4,0.03813198]
[1740146572204,15.13934702,179.44,179.4,0.03813198]
[1740146572400,15.13934702,179.44,179.4,5.61013198]
[1740146572705,0.04275141,179.44,179.4,0.03813198]
[1740146572908,0.04275141,179.44,179.41,5.5719]
[1740146573303,15.13934702,179.44,179.4,0.03813198]
[1740146573606,15.09659561,179.41,179.4,0.03813198]
[1740146576109,15.13934702,179.44,179.4,0.03813198]
[1740146576505,15.13934702,179.44,179.41,5.5718]
[1740146576805,15.09659561,179.51,179.4,0.03813198]
[1740146577008,15.09659561,179.51,179.4,1.7748]
[1740146577511,15.09659561,179.51,179.41,1.7345]
[1740146577804,0.03777949,179.47,179.44,0.03966198]
[1740146578208,0.03777949,179.47,179.46,5.5702]
[1740146581414,15.09659561,179.51,179.47,5.5699]
[1740146582114,15.09659561,179.51,179.44,0.03966198]
[1740146582515,0.03518737,179.49,179.46,5.5704]
[1740146582709,0.03518737,179.49,179.44,100.03966198]
[1740146583109,15.09659561,179.45,179.44,100.03966198]
[1740146583310,15.09659561,179.45,179.35,1.7076]
[1740146583511,0.2874,179.53,179.35,1.7076]
[1740146583512,15.09659561,179.42,179.35,1.7076]
[1740146583713,20.66859561,179.42,179.35,1.7076]
[1740146583911,15.09659561,179.42,179.35,1.7076]
[1740146584115,15.09659561,179.42,179.37,5.573]
[1740146584516,0.0359816,179.41,179.38,0.03551521]
[1740146584716,5.6079816,179.41,179.38,0.03551521]
[1740146585016,0.0359816,179.41,179.38,0.03551521]
[1740146585316,5.5723,179.4,179.38,0.03551521]
[1740146586105,5.5726,179.39,179.38,0.03551521]
[1740146586316,20.66919561,179.39,179.38,0.03551521]
[1740146586615,5.5739,179.35,179.32,1.7237]
[1740146586917,5.5739,179.35,179.28,1.822]
[1740146586918,15.09659561,179.35,179.28,1.822]
[1740146587210,15.09659561,179.32,179.28,1.822]
[1740146587416,20.67139561,179.32,179.28,1.822]
[1740146587610,20.70654865,179.32,179.28,1.86052924]
[1740146587810,5.60995304,179.32,179.28,1.86052924]
[1740146589016,0.03515304,179.32,179.28,1.86052924]
[1740146589216,0.03515304,179.32,179.28,0.03852924]
[1740146589915,0.03515304,179.32,179.29,5.5757]
[1740146590116,0.03515304,179.32,179.28,0.03852924]
[1740146591017,15.09659561,179.3,179.28,0.03852924]
[1740146592113,0.03515304,179.32,179.28,0.03852924]
[1740146592718,15.13174865,179.32,179.28,0.03852924]
[1740146593116,20.70674865,179.32,179.28,0.03852924]
[1740146593311,15.13174865,179.32,179.28,0.03852924]
[1740146593513,0.03515304,179.32,179.29,5.5755]
[1740146593711,0.03515304,179.32,179.28,0.03852924]
[1740146593913,15.13174865,179.32,179.28,0.03852924]
[1740146594113,5.5752,179.31,179.28,0.03852924]
[1740146594309,15.13174865,179.32,179.28,0.03852924]
[1740146595118,20.70674865,179.32,179.28,0.03852924]
[1740146595317,0.03515304,179.32,179.28,0.03852924]
[1740146595517,0.03515304,179.32,179.3,5.5754]
[1740146595819,0.03515304,179.32,179.28,0.03852924]
[1740146596215,0.03515304,179.32,179.29,5.5755]
[1740146596411,0.03515304,179.32,179.28,0.03852924]
[1740146597016,15.09659561,179.38,179.28,55.80852924]
[1740146597316,15.09659561,179.38,179.26,3.4265]
[1740146597520,5.5736,179.36,179.26,3.4265]
[1740146597715,5.5736,179.36,179.28,15.09659561]
[1740146598111,0.03898082,179.34,179.3,0.03651162]
[1740146598318,15.09659561,179.41,179.3,0.03651162]
[1740146598513,5.5741,179.35,179.31,5.5749]
[1740146598720,5.5741,179.35,179.26,3.4265]
[1740146599019,15.09659561,179.38,179.26,3.4265]
[1740146599522,0.04261784,179.34,179.31,15.09659561]
[1740146599725,15.09659561,179.41,179.36,5.5733]
[1740146600216,5.5734,179.37,179.33,5.5742]
[1740146600412,5.5734,179.37,179.28,15.09659561]
[1740146600614,15.09659561,179.41,179.28,15.09659561]
[1740146600821,5.5727,179.39,179.35,5.5736]
[1740146601214,0.0363425,179.4,179.35,0.03716903]
[1740146601918,0.0363425,179.4,179.36,5.5735]
[1740146602115,0.0363425,179.4,179.35,0.03716903]
[1740146602717,5.5727,179.39,179.35,5.61096903]
[1740146602918,5.5727,179.39,179.35,0.03716903]
[1740146603123,5.5727,179.39,179.35,5.61076903]
[1740146604122,5.5731,179.38,179.35,0.03716903]
[1740146604522,0.0363425,179.4,179.35,0.03716903]
[1740146606419,193.0,179.55,179.39,15.09659561]
[1740146606625,15.09659561,179.52,179.4,15.09659561]
[1740146606822,15.09659561,179.52,179.41,1.8093]
[1740146607316,5.569,179.51,179.46,5.5703]
[1740146607522,15.09659561,179.52,179.41,1.8093]
[1740146607717,0.4525,179.59,179.41,1.8093]
[1740146607718,0.03736383,179.48,179.45,0.04182801]
[1740146607917,15.09659561,179.46,179.45,0.04182801]
[1740146608220,15.09659561,179.46,179.44,0.04015019]
[1740146608623,0.04104368,179.47,179.44,0.04015019]
[1740146608923,5.5705,179.46,179.44,0.04015019]
[1740146609121,30.19319122,179.46,179.36,3.4763]
[1740146609320,15.09659561,179.38,179.33,1.7959]
[1740146609515,15.09659561,179.38,179.33,7.3701]
[1740146609722,15.09659561,179.38,179.33,1.7959]
[1740146610124,5.5733,179.37,179.33,1.7959]
[1740146610321,5.61176693,179.37,179.34,0.03885269]
[1740146610527,0.03846693,179.37,179.34,0.03885269]
[1740146611226,24.18277022,179.46,179.34,55.79885269]
[1740146611422,24.18277022,179.46,179.33,1.7959]
[1740146612322,0.03686372,179.41,179.38,0.03925693]
[1740146612927,0.03686372,179.41,179.39,5.5726]
[1740146613226,0.03686372,179.41,179.38,0.03925693]
[1740146613622,0.03686372,179.41,179.4,5.5723]
[1740146613829,0.03686372,179.41,179.38,0.03925693]
[1740146614024,0.03686372,179.41,179.39,5.5726]
[1740146616123,0.03686372,179.41,179.38,0.03925693]
[1740146616826,0.03686372,179.41,179.38,5.61215693]
[1740146617027,0.03686372,179.41,179.38,0.03925693]
[1740146618532,5.60916372,179.41,179.38,0.03925693]
[1740146619726,0.03686372,179.41,179.38,0.03925693]
[1740146620529,5.5725,179.4,179.38,0.03925693]
[1740146620730,0.03686372,179.41,179.38,0.03925693]
[1740146621328,5.60906372,179.41,179.38,0.03925693]
[1740146621933,5.5723,179.4,179.38,0.03925693]
[1740146622133,0.03686372,179.41,179.38,0.03925693]
[1740146622343,5.5726,179.39,179.38,0.03925693]
[1740146624235,5.5726,179.4,179.38,0.03925693]
[1740146624636,0.03686372,179.41,179.38,0.03925693]
[1740146625527,5.5726,179.39,179.38,0.03925693]
[1740146627636,24.18277022,179.4,179.3,5.5753]
[1740146627833,5.5742,179.34,179.3,5.5753]
[1740146628035,24.18277022,179.37,179.29,3.6054]
[1740146628237,5.5745,179.33,179.29,7.3754]
[1740146628539,24.18277022,179.37,179.29,1.7997]
[1740146628834,0.03665187,179.35,179.31,0.04183522]
[1740146629039,5.5744,179.34,179.31,0.04183522]
[1740146630339,24.18277022,179.34,179.31,0.04183522]
[1740146630734,15.12104588,179.33,179.31,0.04183522]
[1740146632240,20.69554588,179.33,179.31,0.04183522]
[1740146633140,15.12104588,179.33,179.31,0.04183522]
[1740146633438,0.03665187,179.35,179.31,0.04183522]
[1740146634441,0.03665187,179.35,179.32,5.5746]
[1740146635240,0.03665187,179.35,179.31,0.04183522]
[1740146635837,0.03665187,179.35,179.34,5.5742]
[1740146637036,15.12104588,179.39,179.32,1.7667]
[1740146637237,15.12104588,179.42,179.32,3.561]
[1740146637838,15.12104588,179.39,179.32,3.561]
[1740146638245,0.03857045,179.37,179.35,5.5738]
[1740146638443,0.03857045,179.37,179.34,0.04090628]
[1740146638845,0.03857045,179.37,179.34,5.61500628]
[1740146639042,0.03857045,179.37,179.34,0.04090628]
[1740146639439,0.03857045,179.37,179.34,5.61490628]
[1740146640048,0.03857045,179.37,179.34,0.04090628]
[1740146640745,15.12104588,179.55,179.35,55.76]
[1740146640951,15.12104588,179.46,179.36,1.707]
[1740146641346,15.12104588,179.43,179.38,5.5726]
[1740146641546,15.12104588,179.43,179.36,1.707]
[1740146641849,15.12104588,179.43,179.38,5.5727]
[1740146641850,20.69244588,179.43,179.38,5.5727]
[1740146642052,0.0412152,179.41,179.38,0.03958757]
[1740146643047,0.0412152,179.41,179.38,5.61228757]
[1740146643753,0.0412152,179.41,179.39,5.5726]
[1740146644453,0.0412152,179.41,179.38,0.03958757]
[1740146644649,0.0412152,179.41,179.4,5.5723]
[1740146645255,0.0412152,179.41,179.38,0.03958757]
[1740146645256,0.0412152,179.41,179.39,5.5725]
[1740146645956,0.0412152,179.41,179.38,0.03958757]
[1740146646152,15.16226108,179.41,179.38,0.03958757]
[1740146646957,5.5723,179.4,179.38,0.03958757]
[1740146647155,15.16226108,179.41,179.38,0.03958757]
[1740146647355,15.16226108,179.41,179.32,3.561]
[1740146647658,15.12104588,179.37,179.32,3.561]
[1740146648157,15.12104588,179.4,179.32,3.561]
[1740146648360,15.12104588,179.43,179.32,18.68204588]
[1740146648564,0.0375696,179.38,179.34,0.04004412]
[1740146648763,0.0375696,179.38,179.37,5.5732]
[1740146649560,0.0375696,179.38,179.34,0.04004412]
[1740146649762,0.0375696,179.38,179.36,5.5735]
[1740146650464,0.0375696,179.38,179.34,0.04004412]
[1740146650664,5.6105696,179.38,179.35,5.5738]
[1740146650865,0.0375696,179.38,179.34,0.04004412]
[1740146651264,0.0375696,179.38,179.37,5.5732]
[1740146651465,0.0375696,179.38,179.34,0.04004412]
[1740146652667,15.12104588,179.46,179.35,55.75]
[1740146652963,15.12104588,179.46,179.36,1.6809]
[1740146653370,5.5712,179.44,179.36,1.6809]
[1740146653962,0.03957634,179.42,179.38,0.0392501]
[1740146654863,5.61127634,179.42,179.38,0.0392501]
[1740146655058,0.03957634,179.42,179.38,0.0392501]
[1740146655265,0.03957634,179.42,179.38,5.6119501]
[1740146655457,5.5721,179.41,179.38,5.6119501]
[1740146656066,5.61127634,179.42,179.38,5.6119501]
[1740146656566,0.03957634,179.42,179.39,5.5726]
[1740146656965,0.03957634,179.42,179.38,0.0392501]
[1740146657271,15.12104588,179.39,179.28,1.678]
[1740146657465,15.12104588,179.32,179.28,1.678]
[1740146657660,15.12104588,179.32,179.28,7.254]
[1740146658068,15.12104588,179.32,179.28,1.678]
[1740146658371,0.04171616,179.32,179.28,1.71672049]
[1740146658573,15.12104588,179.38,179.28,16.83776637]
[1740146658773,15.12104588,179.38,179.28,16.79904588]
[1740146659361,20.69424588,179.38,179.33,5.5742]
[1740146659566,20.69424588,179.38,179.28,16.79904588]
[1740146659770,0.03590332,179.37,179.34,0.04048977]
[1740146659971,5.60940332,179.37,179.34,5.61458977]
[1740146660174,0.03590332,179.37,179.34,0.04048977]
[1740146660766,0.03590332,179.37,179.34,5.61458977]
[1740146660966,0.03590332,179.37,179.34,0.04048977]
[1740146662769,15.12104588,179.35,179.34,0.04048977]
[1740146663264,0.03590332,179.37,179.34,0.04048977]
[1740146665166,0.03590332,179.37,179.35,5.5736]
[1740146665367,0.03590332,179.37,179.34,0.04048977]
[1740146665574,0.03590332,179.37,179.34,5.61448977]
[1740146665775,0.03590332,179.37,179.34,0.04048977]
[1740146666176,0.03590332,179.37,179.35,5.5736]
[1740146666378,0.03590332,179.37,179.34,0.04048977]
[1740146666674,0.03590332,179.37,179.34,5.61448977]
[1740146666878,0.03590332,179.37,179.34,0.04048977]
[1740146667276,5.60920332,179.37,179.34,5.61468977]
[1740146667977,0.03590332,179.37,179.34,0.04048977]
[1740146668183,5.5739,179.35,179.34,0.04048977]
[1740146668373,0.03590332,179.37,179.34,0.04048977]
[1740146668779,5.5737,179.36,179.34,0.04048977]
[1740146669078,15.12104588,179.35,179.34,0.04048977]
[1740146669479,20.69494588,179.35,179.34,0.04048977]
[1740146670180,15.12104588,179.35,179.34,0.04048977]
[1740146670679,0.03590332,179.37,179.34,0.04048977]
[1740146671881,0.03590332,179.37,179.34,5.61458977]
[1740146672280,5.5736,179.36,179.34,0.04048977]
[1740146672477,15.12104588,179.35,179.34,0.04048977]
[1740146673281,20.69494588,179.35,179.34,0.04048977]
[1740146674182,5.5752,179.31,179.28,1.678]
[1740146674686,15.12104588,179.32,179.26,1.807]
[1740146674687,5.5756,179.3,179.26,1.807]
[1740146675081,15.12104588,179.32,179.26,1.807]
[1740146675383,0.03546089,179.3,179.26,0.04040131]
[1740146675779,5.61096089,179.3,179.26,0.04040131]
[1740146675981,5.61096089,179.3,179.26,5.61700131]
[1740146676180,0.03546089,179.3,179.26,5.61700131]
[1740146676581,0.03546089,179.3,179.26,0.04040131]
[1740146676779,15.12104588,179.29,179.26,0.04040131]
[1740146677387,5.5763,179.27,179.26,0.04040131]
[1740146679489,15.12104588,179.29,179.26,0.04040131]
[1740146679682,0.03546089,179.3,179.29,5.5757]
[1740146680087,0.03546089,179.3,179.26,3.57230131]
[1740146680491,15.15650677,179.3,179.26,0.04040131]
[1740146680685,20.73220677,179.3,179.26,0.04040131]
[1740146680890,15.15650677,179.3,179.26,0.04040131]
[1740146681492,0.03546089,179.3,179.26,0.04040131]
[1740146682088,5.61096089,179.3,179.26,5.61680131]
[1740146682591,15.15650677,179.3,179.26,0.04040131]
[1740146683090,5.5763,179.27,179.26,0.04040131]
[1740146683689,15.15650677,179.3,179.26,0.04040131]
[1740146685490,5.5758,179.29,179.26,0.04040131]
[1740146685792,15.15650677,179.3,179.26,0.04040131]
[1740146686191,15.12104588,179.27,179.26,0.04040131]
[1740146687390,15.15650677,179.3,179.26,0.04040131]
[1740146688593,5.5758,179.29,179.26,0.04040131]
[1740146689994,15.15650677,179.3,179.26,0.04040131]
[1740146690494,5.5762,179.28,179.26,0.04040131]
[1740146691093,5.5763,179.27,179.26,0.04040131]
[1740146691294,20.69734588,179.27,179.26,0.04040131]
[1740146691596,15.12104588,179.27,179.26,0.04040131]
[1740146693292,20.69734588,179.27,179.26,0.04040131]
[1740146693795,15.12104588,179.27,179.26,0.04040131]
[1740146694394,20.69734588,179.27,179.26,0.04040131]
[1740146696293,15.12104588,179.27,179.26,0.04040131]
[1740146697998,20.69734588,179.27,179.26,0.04040131]
[1740146699097,15.12104588,179.27,179.26,0.04040131]
[1740146699597,15.15650677,179.3,179.26,0.04040131]
[1740146699793,5.5761,179.28,179.26,0.04040131]
[1740146700600,5.5758,179.29,179.26,5.61700131]
[1740146700901,0.03546089,179.3,179.26,0.04040131]
[1740146701203,0.03546089,179.3,179.29,5.5757]